bitfinex-derivatives/quotes_BTCF0:USTF0_20250106
["timestamp","ask_amount","ask_price","bid_price","bid_amount"]
[1736168512564,0.090423,99186.0,99185.0,0.003]
[1736168517771,0.090423,99186.0,99185.0,0.053423]
[1736168517772,0.050423,99186.0,99185.0,0.053423]
[1736168518368,0.100423,99186.0,99185.0,0.053423]
[1736168518767,0.0102014,99191.0,99185.0,0.003]
[1736168518964,0.050421,99190.0,99189.0,0.050421]
[1736168519164,0.110421,99190.0,99189.0,0.050421]
[1736168520567,0.14833417,99210.0,99203.0,0.050414]
[1736168520969,0.050412,99206.0,99203.0,0.050414]
[1736168521368,0.14833417,99210.0,99203.0,0.050414]
[1736168521569,0.050412,99207.0,99203.0,0.050414]
[1736168522076,0.050413,99206.0,99203.0,0.050414]
[1736168522279,0.00351282,99204.0,99203.0,0.050414]
[1736168522480,0.00851282,99204.0,99203.0,0.050414]
[1736168522673,0.14833417,99214.0,99213.0,0.050409]
[1736168522974,0.14833417,99214.0,99213.0,0.411209]
[1736168523173,0.14833417,99225.0,99213.0,0.3608]
[1736168523480,0.14833417,99225.0,99224.0,0.050403]
[1736168524372,0.14833417,99225.0,99224.0,0.411203]
[1736168524770,0.009,99225.0,99224.0,0.412203]
[1736168525373,0.0504,99232.0,99224.0,0.3608]
[1736168525581,0.0504,99232.0,99231.0,0.0504]
[1736168527482,0.0654,99232.0,99231.0,0.0504]
[1736168528182,0.015,99232.0,99231.0,0.0504]
[1736168528885,0.006,99232.0,99231.0,0.0504]
[1736168529081,0.015,99232.0,99231.0,0.0514]
[1736168532281,0.009,99232.0,99231.0,0.0514]
[1736168532483,0.013,99232.0,99231.0,0.0514]
[1736168532786,0.012,99232.0,99231.0,0.0514]
[1736168535290,0.00151208,99238.0,99237.0,0.050397]
[1736168535478,0.411188,99255.0,99237.0,0.3608]
[1736168535674,0.411188,99255.0,99254.0,0.050388]
[1736168535878,0.3608,99255.0,99254.0,0.050388]
[1736168536278,0.050386,99258.0,99257.0,0.050386]
[1736168536984,0.050386,99258.0,99248.0,0.3608]
[1736168537188,0.05039,99253.0,99252.0,0.050389]
[1736168537485,0.05039,99249.0,99248.0,0.050391]
[1736168539090,0.05539,99249.0,99248.0,0.051391]
[1736168539390,0.05539,99249.0,99248.0,0.052391]
[1736168539391,0.06139,99249.0,99248.0,0.052391]
[1736168543090,0.011,99249.0,99248.0,0.052391]
[1736168545387,0.06139,99249.0,99248.0,0.052391]
[1736168549291,0.011,99249.0,99248.0,0.052391]
[1736168556301,0.02107232,99249.0,99248.0,0.052391]
[1736168558301,0.05107232,99249.0,99248.0,0.052391]
[1736168558701,0.10146232,99249.0,99248.0,0.052391]
[1736168560203,0.15047989,99249.0,99248.0,0.052391]
[1736168561008,0.51127989,99249.0,99248.0,0.052391]
[1736168562905,0.050399,99232.0,99216.0,0.3608]
[1736168563111,0.3608,99232.0,99230.0,0.24001675]
[1736168563297,0.0504,99231.0,99230.0,0.24001675]
[1736168563501,0.1504,99231.0,99230.0,0.24001675]
[1736168564103,0.050404,99223.0,99222.0,0.29965682]
[1736168564403,0.050404,99223.0,99204.0,0.29965682]
[1736168564404,0.3708,99223.0,99204.0,0.29965682]
[1736168564600,0.14793553,99221.0,99220.0,0.050404]
[1736168564799,0.050406,99221.0,99220.0,0.050404]
[1736168565194,0.050409,99212.0,99211.0,0.05192188]
[1736168565407,0.411209,99212.0,99211.0,0.00151188]
[1736168566711,0.411209,99212.0,99211.0,0.00251188]
[1736168567609,0.3608,99212.0,99211.0,0.05292188]
[1736168568507,0.15012611,99219.0,99218.0,0.050406]
[1736168568700,0.050405,99220.0,99212.0,0.0322]
[1736168568902,0.050405,99220.0,99219.0,0.050406]
[1736168570501,0.053405,99220.0,99219.0,0.050406]
[1736168571703,0.054405,99220.0,99219.0,0.050406]
[1736168576702,0.11981226,99230.0,99219.0,0.050406]
[1736168577007,0.11981226,99230.0,99229.0,0.050401]
[1736168578109,0.12281226,99230.0,99229.0,0.050401]
[1736168578315,0.003,99230.0,99229.0,0.050401]
[1736168579003,0.009,99230.0,99229.0,0.051401]
[1736168582907,0.050395,99240.0,99239.0,0.050394]
[1736168583316,0.050399,99235.0,99234.0,0.050398]
[1736168583711,0.001512,99243.0,99234.0,0.050398]
[1736168583910,0.001512,99243.0,99242.0,0.050394]
[1736168584314,0.11981226,99248.0,99247.0,0.050392]
[1736168584814,0.050391,99248.0,99247.0,0.050392]
[1736168585611,0.050391,99248.0,99247.0,0.051392]
[1736168585612,0.055391,99248.0,99247.0,0.051392]
[1736168585811,0.055391,99248.0,99247.0,0.001]
[1736168586019,0.055391,99248.0,99231.0,0.3608]
[1736168586020,0.105391,99248.0,99231.0,0.3608]
[1736168586316,0.105391,99248.0,99206.0,0.050412]
[1736168586317,0.050406,99221.0,99220.0,0.050404]
[1736168586517,0.050406,99221.0,99218.0,0.29965682]
[1736168586717,0.050406,99219.0,99218.0,0.29965682]
[1736168587019,0.180406,99219.0,99218.0,0.29965682]
[1736168588020,0.180406,99219.0,99211.0,0.00151188]
[1736168588021,0.050409,99212.0,99211.0,0.00151188]
[1736168588221,0.411209,99212.0,99211.0,0.00151188]
[1736168589712,0.411209,99212.0,99211.0,0.00251188]
[1736168590223,0.411209,99212.0,99211.0,0.00351188]
[1736168591928,0.411209,99212.0,99211.0,0.002]
[1736168592218,0.421209,99212.0,99211.0,0.002]
[1736168593114,0.411209,99212.0,99211.0,0.002]
[1736168594121,0.53101693,99212.0,99211.0,0.002]
[1736168595322,0.411209,99212.0,99211.0,0.002]
[1736168596719,0.541209,99212.0,99211.0,0.002]
[1736168602322,0.63104335,99212.0,99211.0,0.002]
[1736168604819,0.541209,99212.0,99211.0,0.002]
[1736168607527,0.63102101,99212.0,99211.0,0.002]
[1736168610323,0.541209,99212.0,99211.0,0.002]
[1736168616828,0.5902472,99212.0,99211.0,0.002]
[1736168620836,0.0490382,99212.0,99211.0,0.05241]
[1736168621040,0.21060611,99222.0,99212.0,0.050409]
[1736168621238,0.21060611,99222.0,99221.0,0.050405]
[1736168621438,0.11080611,99222.0,99221.0,0.050405]
[1736168622243,0.051404,99222.0,99221.0,0.050405]
[1736168622532,0.053404,99222.0,99221.0,0.050405]
[1736168625234,0.053404,99222.0,99220.0,0.0317]
[1736168625431,0.3608,99221.0,99216.0,0.18074998]
[1736168625626,0.050407,99217.0,99216.0,0.18074998]
[1736168626431,0.050407,99217.0,99210.0,0.05041]
[1736168626631,0.050411,99209.0,99208.0,0.0308]
[1736168626840,0.050411,99208.0,99207.0,0.050412]
[1736168627738,0.3608,99212.0,99200.0,0.39416]
[1736168627739,0.050414,99205.0,99204.0,0.050413]
[1736168628441,0.050414,99205.0,99200.0,0.36172]
[1736168628639,0.3608,99201.0,99197.0,0.18074998]
[1736168628934,0.050418,99195.0,99194.0,0.18074998]
[1736168630137,0.050416,99198.0,99191.0,0.0316]
[1736168630338,0.050419,99192.0,99191.0,0.0316]
[1736168630842,0.05042,99190.0,99189.0,0.18074998]
[1736168631430,0.3608,99192.0,99188.0,0.18074998]
[1736168631743,0.050421,99189.0,99188.0,0.18074998]
[1736168632636,0.050421,99189.0,99188.0,0.18974998]
[1736168632842,0.050421,99189.0,99188.0,0.009]
[1736168633039,0.050421,99189.0,99181.0,0.3608]
[1736168633228,0.051421,99189.0,99188.0,0.013]
[1736168633436,0.06144781,99189.0,99188.0,0.013]
[1736168634247,0.18143102,99189.0,99188.0,0.013]
[1736168635145,0.06144781,99189.0,99188.0,0.013]
[1736168635330,0.050422,99186.0,99185.0,0.050423]
[1736168636741,0.051422,99186.0,99185.0,0.009]
[1736168637240,0.051422,99186.0,99185.0,0.013]
[1736168637945,0.06165328,99186.0,99185.0,0.013]
[1736168638941,0.19165328,99186.0,99185.0,0.013]
[1736168647053,0.2814754,99186.0,99185.0,0.013]
[1736168647649,0.1010534,99186.0,99185.0,0.013]
[1736168647947,0.1514764,99186.0,99185.0,0.063423]
[1736168648254,0.22165428,99186.0,99185.0,0.013]
[1736168648655,0.31605428,99186.0,99185.0,0.013]
[1736168651852,0.050425,99181.0,99180.0,0.00151235]
[1736168652043,0.200425,99181.0,99180.0,0.00151235]
[1736168652758,0.050435,99161.0,99160.0,0.050436]
[1736168653357,0.050433,99167.0,99166.0,0.050432]
[1736168655559,0.051433,99167.0,99166.0,0.07520137]
[1736168655760,0.001,99167.0,99166.0,0.07820137]
[1736168656857,0.001,99167.0,99166.0,0.062432]
[1736168657252,0.01111518,99167.0,99166.0,0.062432]
[1736168658155,0.06154718,99167.0,99166.0,0.062432]
[1736168659360,0.06154718,99167.0,99166.0,0.07820125]
[1736168659554,0.06154718,99167.0,99166.0,0.062432]
[1736168659861,0.06154718,99167.0,99166.0,0.07820125]
[1736168662151,0.15140062,99167.0,99166.0,0.07820125]
[1736168664956,0.09085344,99167.0,99166.0,0.43900125]
[1736168665161,0.15033774,99179.0,99178.0,0.050427]
[1736168665361,0.23082729,99187.0,99186.0,0.050422]
[1736168665663,0.241034,99187.0,99186.0,0.050422]
[1736168667065,0.050416,99198.0,99197.0,0.050415]
[1736168669154,0.053416,99198.0,99197.0,0.050415]
[1736168670559,0.053416,99198.0,99197.0,0.23156595]
[1736168671060,0.053416,99198.0,99197.0,0.18115095]
[1736168671255,0.103416,99198.0,99197.0,0.18115095]
[1736168671961,0.103416,99198.0,99192.0,0.18115095]
[1736168672162,0.050419,99193.0,99192.0,0.18115095]
[1736168673466,0.3608,99194.0,99188.0,0.050421]
[1736168673659,0.050421,99189.0,99188.0,0.050421]
[1736168675165,0.050421,99189.0,99188.0,0.051421]
[1736168675563,0.050421,99189.0,99188.0,0.053421]
[1736168678272,0.06076475,99189.0,99188.0,0.053421]
[1736168682564,0.050421,99189.0,99188.0,0.053421]
[1736168684871,0.36136001,99194.0,99188.0,0.003]
[1736168685077,0.050419,99193.0,99192.0,0.050419]
[1736168685681,0.050419,99193.0,99192.0,0.411219]
[1736168686475,0.050423,99189.0,99188.0,0.050421]
[1736168688580,0.050423,99189.0,99188.0,0.051421]
[1736168688780,0.050423,99189.0,99188.0,0.053421]
[1736168695394,0.050423,99189.0,99188.0,0.29498345]
[1736168704718,0.561223,99189.0,99188.0,0.24456245]
[1736168705016,0.561223,99189.0,99188.0,0.19352868]
[1736168706509,0.61027349,99189.0,99182.0,0.1814859]
[1736168706713,0.050424,99183.0,99182.0,0.1814859]
[1736168706908,0.210424,99183.0,99182.0,0.1814859]
[1736168707909,0.210424,99183.0,99182.0,0.1854859]
[1736168708109,0.210424,99183.0,99182.0,0.1864859]
[1736168709112,0.050422,99187.0,99186.0,0.050422]
[1736168709314,0.200422,99187.0,99186.0,0.050422]
[1736168710616,0.200422,99187.0,99186.0,0.053422]
[1736168711524,0.200422,99187.0,99186.0,0.054422]
[1736168712220,0.200422,99187.0,99186.0,0.004]
[1736168712614,0.050424,99184.0,99183.0,0.1814859]
[1736168712818,0.210424,99184.0,99183.0,0.1814859]
[1736168713824,0.050427,99178.0,99177.0,0.00151237]
[1736168714025,0.521227,99178.0,99177.0,0.00151237]
[1736168714717,0.050434,99164.0,99163.0,0.29965682]
[1736168715121,0.3608,99166.0,99159.0,0.29965682]
[1736168715321,0.050436,99160.0,99159.0,0.29965682]
[1736168716013,0.050436,99160.0,99159.0,0.35009282]
[1736168716623,0.050436,99160.0,99159.0,0.050436]
[1736168717218,0.3608,99166.0,99147.0,0.0416542]
[1736168717527,0.001,99164.0,99163.0,0.062434]
[1736168717917,0.06409138,99170.0,99169.0,0.050431]
[1736168718117,0.15028924,99173.0,99163.0,0.054434]
[1736168718324,0.06409138,99173.0,99163.0,0.050434]
[1736168718529,0.001,99166.0,99165.0,0.050433]
[1736168718820,0.001,99166.0,99165.0,0.06620257]
[1736168719020,0.002,99166.0,99165.0,0.06620257]
[1736168719222,0.001,99166.0,99165.0,0.06620257]
[1736168720719,0.001,99166.0,99165.0,0.07420257]
[1736168722026,0.001,99166.0,99165.0,0.07820257]
[1736168722722,0.050425,99181.0,99180.0,0.050426]
[1736168723926,0.050425,99181.0,99180.0,0.053426]
[1736168724925,0.050425,99181.0,99180.0,0.054426]
[1736168727933,0.180425,99181.0,99180.0,0.054426]
[1736168731127,0.180425,99181.0,99180.0,0.004]
[1736168737537,0.22948013,99181.0,99180.0,0.004]
[1736168737732,0.050437,99158.0,99157.0,0.0308]
[1736168738238,0.050437,99158.0,99157.0,0.04657113]
[1736168738831,0.051437,99158.0,99157.0,0.05157113]
[1736168739939,0.052437,99158.0,99157.0,0.05857113]
[1736168744335,0.052437,99158.0,99157.0,0.0428]
[1736168744936,0.052437,99158.0,99157.0,0.05857132]
[1736168745938,0.052437,99158.0,99157.0,0.0428]
[1736168750044,0.052437,99158.0,99157.0,0.012]
[1736168750251,0.413237,99158.0,99157.0,0.012]
[1736168754345,0.463237,99158.0,99157.0,0.012]
[1736168758239,0.58333509,99158.0,99157.0,0.012]
[1736168759345,0.463237,99158.0,99157.0,0.012]
[1736168759747,0.413237,99158.0,99157.0,0.012]
[1736168760144,0.543237,99158.0,99141.0,0.0323]
[1736168760345,0.050445,99142.0,99141.0,0.0323]
[1736168760849,0.050445,99142.0,99141.0,0.04807321]
[1736168762644,0.051445,99142.0,99141.0,0.04807321]
[1736168762842,0.052445,99142.0,99141.0,0.082745]
[1736168763650,0.06269239,99142.0,99141.0,0.082745]
[1736168766144,0.052445,99142.0,99141.0,0.082745]
[1736168770048,0.052445,99142.0,99141.0,0.0323]
[1736168771754,0.06276791,99142.0,99141.0,0.0323]
[1736168772254,0.06276791,99142.0,99141.0,0.27418558]
[1736168773747,0.06267917,99142.0,99141.0,0.0323]
[1736168775541,0.01232291,99142.0,99139.0,0.00151278]
[1736168775751,0.050446,99140.0,99139.0,0.00151278]
[1736168776850,0.002,99142.0,99141.0,0.050445]
[1736168777055,0.050442,99147.0,99146.0,0.050441]
[1736168777251,0.17041606,99147.0,99146.0,0.411241]
[1736168778144,0.17241606,99147.0,99146.0,0.411241]
[1736168778845,0.052442,99147.0,99146.0,0.411241]
[1736168779956,0.052442,99147.0,99146.0,0.3608]
[1736168780555,0.050443,99146.0,99145.0,0.35009982]
[1736168781458,0.050443,99146.0,99145.0,0.050443]
[1736168781755,0.051443,99146.0,99145.0,0.052443]
[1736168781950,0.052443,99146.0,99145.0,0.052443]
[1736168783762,0.052443,99146.0,99145.0,0.002]
[1736168784953,0.052443,99146.0,99145.0,0.052443]
[1736168787163,0.052443,99146.0,99145.0,0.002]
[1736168787658,0.202443,99146.0,99145.0,0.24407203]
[1736168788855,0.200443,99146.0,99145.0,0.24207203]
[1736168789058,0.050448,99136.0,99135.0,0.24207203]
[1736168789564,0.050451,99129.0,99128.0,0.29965682]
[1736168790250,0.3608,99131.0,99121.0,0.051456]
[1736168790251,0.050455,99123.0,99121.0,0.051456]
[1736168790452,0.3608,99131.0,99121.0,0.050456]
[1736168790453,0.050455,99122.0,99121.0,0.050456]
[1736168790861,0.050455,99122.0,99121.0,0.06623259]
[1736168791261,0.050455,99122.0,99121.0,0.050456]
[1736168791557,0.050457,99119.0,99118.0,0.29965682]
[1736168792054,0.050459,99114.0,99113.0,0.05046]
[1736168792557,0.05046,99112.0,99111.0,0.100461]
[1736168794753,0.05146,99112.0,99111.0,0.100461]
[1736168794953,0.05246,99112.0,99111.0,0.100461]
[1736168795364,0.06260132,99112.0,99111.0,0.05]
[1736168795664,0.42340132,99112.0,99111.0,0.05]
[1736168796550,0.42340132,99112.0,99111.0,0.100461]
[1736168796958,0.002,99112.0,99111.0,0.100461]
[1736168797157,0.002,99112.0,99111.0,0.164161]
[1736168798058,0.001,99112.0,99111.0,0.164161]
[1736168798263,0.002,99112.0,99111.0,0.164161]
[1736168815370,0.002,99112.0,99111.0,0.524961]
[1736168818382,0.002,99112.0,99111.0,1.11565345]
[1736168819481,0.002,99112.0,99111.0,0.81599663]
[1736168822284,0.08998275,99122.0,99111.0,0.81599663]
[1736168822476,0.050445,99141.0,99133.0,0.050449]
[1736168822783,0.06412715,99140.0,99133.0,0.411249]
[1736168822982,0.00994663,99138.0,99133.0,0.411249]
[1736168823777,0.00994663,99138.0,99133.0,0.3608]
[1736168823975,0.00994663,99138.0,99134.0,0.050449]
[1736168824184,0.09532715,99143.0,99134.0,0.050449]
[1736168824380,0.01037056,99139.0,99134.0,0.050449]
[1736168825282,0.01037056,99139.0,99138.0,0.050447]
[1736168825470,0.0312,99143.0,99138.0,0.050447]
[1736168825669,0.0312,99143.0,99142.0,0.050445]
[1736168828184,0.0312,99143.0,99142.0,0.051445]
[1736168830889,0.0312,99143.0,99142.0,0.412245]
[1736168837091,0.00151342,99149.0,99143.0,0.050444]
[1736168837589,0.00151342,99149.0,99148.0,0.050442]
[1736168837792,0.0961,99163.0,99162.0,0.050435]
[1736168838293,0.01025232,99163.0,99162.0,0.050435]
[1736168838485,0.15012261,99172.0,99162.0,0.050435]
[1736168838678,0.15012261,99172.0,99171.0,0.05043]
[1736168840088,0.0936,99178.0,99177.0,0.050427]
[1736168840297,0.0311,99178.0,99177.0,0.050427]
[1736168840601,0.0628,99189.0,99186.0,0.050423]
[1736168840786,0.0628,99189.0,99186.0,0.411223]
[1736168841490,0.15012261,99193.0,99186.0,0.411223]
[1736168841697,0.15012261,99193.0,99192.0,0.050419]
[1736168841890,0.15012261,99193.0,99188.0,0.3608]
[1736168841891,0.3608,99196.0,99188.0,0.3608]
[1736168842091,0.050424,99184.0,99183.0,0.050424]
[1736168843597,0.050428,99178.0,99177.0,0.050427]
[1736168845300,0.050429,99173.0,99172.0,0.0519424]
[1736168847000,0.054429,99173.0,99172.0,0.0519424]
[1736168847906,0.062429,99173.0,99172.0,0.0519424]
[1736168851097,0.07268472,99173.0,99172.0,0.0519424]
[1736168853099,0.050433,99167.0,99166.0,0.050432]
[1736168854509,0.050436,99162.0,99161.0,0.050435]
[1736168854698,0.050436,99161.0,99160.0,0.050435]
[1736168855801,0.052436,99161.0,99160.0,0.050435]
[1736168857003,0.05044,99156.0,99155.0,0.050438]
[1736168858402,0.05144,99156.0,99155.0,0.050438]
[1736168858602,0.05044,99153.0,99152.0,0.050439]
[1736168860709,0.05044,99151.0,99150.0,0.3608]
[1736168861902,0.05044,99151.0,99150.0,0.411241]
[1736168862610,0.05544,99151.0,99150.0,0.411241]
[1736168862912,0.05544,99151.0,99150.0,0.050441]
[1736168865705,0.050444,99145.0,99144.0,0.050444]
[1736168867017,0.050444,99145.0,99142.0,0.00151291]
[1736168867018,0.050444,99143.0,99142.0,0.00151291]
[1736168867218,0.070444,99143.0,99142.0,0.00151291]
[1736168869112,0.050444,99143.0,99142.0,0.05195791]
[1736168869615,0.050444,99143.0,99142.0,0.05295791]
[1736168870202,0.00997618,99145.0,99142.0,0.05295791]
[1736168870409,0.3608,99154.0,99143.0,0.3912]
[1736168870613,0.050442,99152.0,99151.0,0.05044]
[1736168870803,0.190442,99152.0,99151.0,0.05044]
[1736168871907,0.42117995,99154.0,99153.0,0.050439]
[1736168873110,0.42517995,99154.0,99153.0,0.050439]
[1736168874215,0.42717995,99154.0,99153.0,0.050439]
[1736168877013,0.056439,99154.0,99153.0,0.050439]
[1736168877208,0.006,99154.0,99153.0,0.050439]
[1736168877413,0.006,99154.0,99153.0,0.082639]
[1736168877816,0.050433,99165.0,99164.0,0.050434]
[1736168878913,0.06066811,99170.0,99169.0,0.050431]
[1736168880226,0.14807443,99180.0,99172.0,0.05043]
[1736168880227,0.411229,99173.0,99172.0,0.05043]
[1736168881512,0.411229,99173.0,99172.0,0.05143]
[1736168881513,0.416229,99173.0,99172.0,0.05143]
[1736168881817,0.3658,99173.0,99172.0,0.05143]
[1736168882121,0.014,99173.0,99172.0,0.05243]
[1736168886427,0.064429,99173.0,99172.0,0.05243]
[1736168888340,0.014,99173.0,99172.0,0.05243]
[1736168891129,0.064429,99173.0,99172.0,0.05243]
[1736168893614,0.014,99173.0,99172.0,0.05243]
[1736168894228,0.014,99173.0,99172.0,0.41323]
[1736168894928,0.11979496,99179.0,99178.0,0.050427]
[1736168895130,0.15012261,99190.0,99178.0,0.050427]
[1736168895131,0.15012261,99190.0,99186.0,0.050422]
[1736168895315,0.15012261,99190.0,99186.0,0.411222]
[1736168895513,0.05042,99192.0,99186.0,0.411222]
[1736168896024,0.01030223,99187.0,99186.0,0.411222]
[1736168896229,0.11963657,99193.0,99192.0,0.050419]
[1736168897421,0.01034369,99201.0,99200.0,0.050415]
[1736168897623,0.050413,99205.0,99204.0,0.050411]
[1736168899824,0.004,99205.0,99204.0,0.051411]
[1736168900024,0.009,99205.0,99204.0,0.051411]
[1736168900231,0.005,99205.0,99204.0,0.050411]
[1736168900424,0.009,99205.0,99204.0,0.051411]
[1736168907241,0.00151233,99220.0,99219.0,0.050406]
[1736168907440,0.00151233,99220.0,99219.0,0.411206]
[1736168909045,0.00851233,99220.0,99219.0,0.412206]
[1736168909342,0.01651233,99220.0,99219.0,0.413206]
[1736168911440,0.015,99220.0,99219.0,0.413206]
[1736168912250,0.002,99220.0,99219.0,0.411206]
[1736168912543,0.007,99220.0,99219.0,0.411206]
[1736168914745,0.007,99220.0,99219.0,0.772006]
[1736168917645,0.007,99220.0,99219.0,0.411206]
[1736168921948,0.01723775,99220.0,99219.0,0.411206]
[1736168922352,0.06764275,99220.0,99219.0,0.050406]
[1736168922851,0.06764275,99220.0,99215.0,0.050407]
[1736168922852,0.050408,99216.0,99215.0,0.050407]
[1736168924446,0.052408,99216.0,99215.0,0.050407]
[1736168924650,0.050411,99211.0,99210.0,0.05041]
[1736168924952,0.050414,99203.0,99202.0,0.050414]
[1736168925452,0.3608,99203.0,99200.0,0.2409712]
[1736168925769,0.050415,99201.0,99200.0,0.1411712]
[1736168926346,0.050415,99201.0,99192.0,0.30243094]
[1736168926347,0.050417,99197.0,99196.0,0.050417]
[1736168927557,0.050417,99197.0,99196.0,0.054417]
[1736168928755,0.050417,99197.0,99196.0,0.056417]
[1736168930054,0.01025595,99197.0,99196.0,0.056417]
[1736168930358,0.41181401,99203.0,99202.0,0.050414]
[1736168930541,0.411214,99203.0,99202.0,0.050414]
[1736168931455,0.411214,99203.0,99202.0,0.051414]
[1736168931862,0.050414,99203.0,99202.0,0.051414]
[1736168932355,0.050411,99209.0,99208.0,0.050411]
[1736168932561,0.050408,99215.0,99214.0,0.050407]
[1736168933058,0.15012261,99220.0,99208.0,0.3608]
[1736168933259,0.20052761,99220.0,99216.0,0.411207]
[1736168933653,0.050405,99220.0,99216.0,0.411207]
[1736168935059,0.00351229,99217.0,99216.0,0.411207]
[1736168936353,0.00851229,99217.0,99216.0,0.411207]
[1736168936655,0.050396,99239.0,99235.0,0.050398]
[1736168937262,0.02397286,99236.0,99235.0,0.050398]
[1736168937856,0.03097286,99236.0,99235.0,0.051398]
[1736168938253,0.08136986,99236.0,99235.0,0.001]
[1736168938861,0.08636986,99236.0,99235.0,0.001]
[1736168941969,0.08636986,99236.0,99235.0,0.051398]
[1736168943262,0.23636986,99236.0,99235.0,0.001]
[1736168946172,0.28539757,99236.0,99235.0,0.001]
[1736168947667,0.23636986,99236.0,99235.0,0.001]
[1736168949274,0.23636986,99236.0,99235.0,0.051398]
[1736168951479,0.08636986,99236.0,99235.0,0.051398]
[1736168951778,0.02211308,99236.0,99235.0,0.412198]
[1736168952686,0.07251008,99236.0,99235.0,0.412198]
[1736168953677,0.07251008,99236.0,99235.0,0.001]
[1736168953873,0.08251008,99236.0,99235.0,0.001]
[1736168954777,0.050406,99219.0,99218.0,0.18097178]
[1736168955894,0.050406,99219.0,99218.0,0.23137778]
[1736168956080,0.050406,99219.0,99218.0,0.18097178]
[1736168956282,0.202406,99219.0,99218.0,0.18097178]
[1736168956492,0.002,99219.0,99211.0,0.0304]
[1736168956787,0.050408,99216.0,99215.0,0.050408]
[1736168958286,0.054408,99216.0,99215.0,0.050408]
[1736168958884,0.004,99216.0,99215.0,0.050408]
[1736168959490,0.006,99216.0,99215.0,0.050408]
[1736168961183,0.006,99216.0,99215.0,0.23137978]
[1736168962391,0.006,99216.0,99215.0,0.050408]
[1736168962983,0.056407,99216.0,99215.0,0.050408]
[1736168967290,0.006,99216.0,99215.0,0.050408]
[1736168971898,0.056407,99216.0,99215.0,0.050408]
[1736168972501,0.05041,99214.0,99213.0,0.050409]
[1736168972690,0.09041,99214.0,99213.0,0.050409]
[1736168973999,0.04,99214.0,99207.0,0.30243094]
[1736168974297,0.050411,99209.0,99208.0,0.050411]
[1736168974999,0.050413,99205.0,99204.0,0.0326]
[1736168976400,0.050413,99205.0,99204.0,0.083013]
[1736168977799,0.06039507,99205.0,99204.0,0.083013]
[1736168978505,0.050413,99205.0,99204.0,0.083013]
[1736168979099,0.11952696,99208.0,99204.0,0.083013]
[1736168979407,0.050411,99208.0,99207.0,0.050412]
[1736168980891,0.06147798,99208.0,99207.0,0.050412]
[1736168981605,0.050415,99203.0,99202.0,0.050413]
[1736168983110,0.050415,99203.0,99202.0,0.23157587]
[1736168983900,0.050415,99203.0,99202.0,0.23257587]
[1736168984102,0.050415,99203.0,99202.0,0.051413]
[1736168985511,0.090415,99203.0,99202.0,0.001]
[1736168986515,0.20994196,99203.0,99202.0,0.001]
[1736168988418,0.090415,99203.0,99202.0,0.001]
[1736168988829,0.122815,99203.0,99202.0,0.001]
[1736168994525,0.844415,99203.0,99202.0,0.001]
[1736169001034,0.050424,99184.0,99183.0,0.050424]
[1736169002319,0.050424,99184.0,99183.0,0.053424]
[1736169002717,0.050424,99184.0,99183.0,0.060424]
[1736169005033,0.06072606,99184.0,99183.0,0.060424]
[1736169008636,0.13996378,99192.0,99191.0,0.05042]
[1736169009830,0.08954378,99199.0,99191.0,0.05242]
[1736169010031,0.17131815,99204.0,99198.0,0.3608]
[1736169010336,0.17131815,99204.0,99203.0,0.050414]
[1736169010726,0.050415,99200.0,99199.0,0.080516]
[1736169010926,0.170415,99200.0,99199.0,0.0301]
[1736169012024,0.170415,99200.0,99199.0,0.0321]
[1736169012229,0.170415,99200.0,99199.0,0.083516]
[1736169013137,0.050415,99200.0,99199.0,0.083516]
[1736169021041,0.080415,99200.0,99199.0,0.083516]
[1736169023444,0.050415,99200.0,99199.0,0.083516]
[1736169023834,0.1193917,99201.0,99200.0,0.050415]
[1736169024550,0.1698067,99201.0,99200.0,0.050415]
[1736169025247,0.050415,99201.0,99200.0,0.052415]
[1736169025547,0.050415,99201.0,99200.0,0.053415]
[1736169031140,0.050415,99201.0,99200.0,0.2347013]
[1736169032339,0.050415,99201.0,99200.0,0.053415]
[1736169034153,0.00151245,99204.0,99200.0,0.053415]
[1736169034356,0.00151245,99204.0,99203.0,0.050414]
[1736169035954,0.01142308,99204.0,99203.0,0.050414]
[1736169038057,0.01142308,99204.0,99203.0,0.29200659]
[1736169039049,0.00151245,99204.0,99203.0,0.29200659]
[1736169040355,0.00151245,99204.0,99203.0,0.050414]
[1736169058362,0.05192545,99204.0,99198.0,0.30243094]
[1736169058661,0.050416,99199.0,99198.0,0.30243094]
[1736169058865,0.200416,99199.0,99198.0,0.30243094]
[1736169059059,0.200416,99199.0,99198.0,0.25253094]
[1736169060261,0.200416,99199.0,99198.0,0.18150273]
[1736169061369,0.200416,99199.0,99198.0,0.001]
[1736169061763,0.200416,99199.0,99198.0,0.003]
[1736169062263,0.231716,99199.0,99198.0,0.003]
[1736169062567,0.35147608,99199.0,99198.0,0.003]
[1736169063158,0.050416,99198.0,99197.0,0.18143556]
[1736169063469,0.200416,99198.0,99197.0,0.18143556]
[1736169063773,0.200416,99198.0,99189.0,0.050421]
[1736169063774,0.050417,99196.0,99195.0,0.18143556]
[1736169064070,0.551217,99196.0,99195.0,0.18143556]
[1736169064867,0.551217,99196.0,99087.0,1.18115796]
[1736169064868,0.050423,99186.0,99185.0,0.24200365]
[1736169065169,0.05043,99171.0,99170.0,0.36215037]
[1736169065369,0.05043,99171.0,99170.0,0.36115037]
[1736169066674,0.050433,99166.0,99165.0,0.050433]
[1736169067473,0.3608,99174.0,99159.0,0.3608]
[1736169067672,0.050434,99164.0,99159.0,0.3608]
[1736169068975,0.050434,99164.0,99160.0,0.050436]
[1736169069165,0.051434,99164.0,99163.0,0.01551244]